bitfinex/quotes_ETHUSD_20240703
["timestamp","ask_amount","ask_price","bid_price","bid_amount"]
[1720009304727,0.08622168,3301.4,3301.3,0.01884596]
[1720009304926,0.8204,3302.0,3301.3,0.01884596]
[1720009304927,3.5244,3302.0,3301.3,0.01884596]
[1720009305225,0.08622168,3301.4,3301.3,0.01884596]
[1720009305689,0.55,3301.4,3301.3,0.01884596]
[1720009305886,0.63617015,3301.4,3301.3,0.01884596]
[1720009307306,3.63617015,3301.4,3301.3,0.01884596]
[1720009307705,5.45917015,3301.4,3301.3,0.01884596]
[1720009307919,9.27548717,3301.4,3301.3,0.01884596]
[1720009308700,15.97948717,3301.4,3301.3,0.01884596]
[1720009312526,16.97948717,3301.4,3301.3,0.01884596]
[1720009313610,20.68348717,3301.4,3301.3,0.01884596]
[1720009313817,1.823,3300.7,3299.2,2.3631]
[1720009314031,5.5593,3300.6,3299.2,2.3631]
[1720009314341,3.0,3300.5,3299.2,2.3631]
[1720009314497,0.55,3300.4,3299.2,2.3631]
[1720009314693,0.63555542,3300.4,3299.2,2.3631]
[1720009315328,2.45855542,3300.4,3299.2,2.3631]
[1720009315531,0.54585554,3300.3,3299.2,2.3631]
[1720009315740,0.55,3300.2,3299.2,2.3631]
[1720009315902,2.4577463,3300.2,3298.5,2.2867]
[1720009316102,5.4577463,3300.2,3298.5,2.2867]
[1720009316310,0.90036018,3300.1,3298.6,0.49907]
[1720009316516,0.55,3300.0,3298.6,0.49907]
[1720009317013,0.08473042,3299.9,3298.5,2.2867]
[1720009317339,0.55,3299.8,3298.5,2.2867]
[1720009317512,0.63465502,3299.8,3298.5,2.2867]
[1720009319243,0.63465502,3299.8,3298.6,0.060628]
[1720009319443,0.08465502,3299.8,3298.6,0.060628]
[1720009319600,0.08465502,3299.8,3298.7,0.2347328]
[1720009319805,3.54585554,3300.3,3298.8,0.06062044]
[1720009320001,0.55,3300.2,3298.8,0.06062044]
[1720009320339,0.6345558,3300.2,3298.8,0.06062044]
[1720009320705,0.6345558,3300.2,3298.9,2.41522043]
[1720009320706,0.0845558,3300.2,3298.9,2.41522043]
[1720009321038,0.0845558,3300.2,3299.0,0.24152204]
[1720009321744,0.0845558,3300.2,3299.1,0.06061269]
[1720009322447,0.0845558,3300.2,3299.0,0.24152204]
[1720009322448,0.0845558,3300.2,3299.3,8.93289]
[1720009322613,0.0845558,3300.2,3299.5,2.3458]
[1720009322808,7.32,3300.4,3299.6,0.06060154]
[1720009323005,7.32,3300.4,3299.7,0.24064015]
[1720009323204,7.32,3300.4,3299.8,0.06060152]
[1720009323936,0.08213698,3300.3,3299.8,0.06060152]
[1720009324312,0.08213698,3300.3,3299.9,0.06060158]
[1720009324523,0.08213698,3300.3,3300.0,2.2593]
[1720009324736,7.32,3300.8,3300.1,0.39793181]
[1720009325039,0.08213698,3300.2,3300.1,0.39793181]
[1720009325353,7.32,3300.8,3300.3,5.28932]
[1720009325506,7.33837446,3301.4,3300.4,0.06058826]
[1720009325700,0.08213698,3300.7,3300.5,0.48216219]
[1720009325940,7.33837446,3301.4,3300.6,0.06058354]
[1720009326147,7.32,3301.4,3300.6,0.06058354]
[1720009326311,0.08213698,3301.3,3300.7,0.06058302]
[1720009326523,0.08213698,3301.3,3300.8,2.56007866]
[1720009326730,0.08213698,3301.3,3300.8,2.4995]
[1720009327513,0.08213698,3301.3,3300.2,5.3682]
[1720009329207,0.08213698,3301.3,3300.2,2.3381]
[1720009329950,0.08213698,3301.3,3300.3,0.0605906]
[1720009330177,0.08213698,3301.3,3300.4,0.23986906]
[1720009330352,0.08213698,3301.3,3300.5,0.06058539]
[1720009331431,0.08213698,3301.3,3300.4,0.23986906]
[1720009331662,0.08213698,3301.3,3300.2,2.3381]
[1720009332235,3.08213698,3301.3,3300.2,2.3381]
[1720009337628,0.55,3301.2,3300.2,2.3381]
[1720009337830,0.55,3301.2,3299.8,2.385]
[1720009338029,0.08321011,3301.1,3299.8,2.385]
[1720009338274,0.55,3301.0,3299.8,2.385]
[1720009338625,0.08319819,3300.9,3299.8,2.385]
[1720009338872,0.08319819,3300.9,3299.3,2.3975]
[1720009339179,0.55,3300.8,3299.3,2.3975]
[1720009339529,0.08306308,3300.7,3299.3,2.3975]
[1720009339729,0.55,3300.6,3299.3,2.3975]
[1720009340266,0.08305513,3300.5,3299.3,2.3975]
[1720009342071,0.08305513,3300.5,3299.4,0.06060948]
[1720009342443,0.08289615,3300.4,3299.4,0.06060948]
[1720009342643,0.08289615,3300.4,3299.3,8.62642]
[1720009342839,10.32,3301.0,3299.3,8.62642]
[1720009343039,0.08268558,3300.9,3299.3,11.65734]
[1720009343272,1.04026856,3300.8,3299.3,11.65734]
[1720009343663,1.04026856,3300.8,3299.3,2.3975]
[1720009343863,0.0826816,3300.7,3299.3,2.3975]
[1720009344268,0.0826816,3300.7,3298.8,2.4074]
[1720009344468,0.55,3300.6,3298.8,2.4074]
[1720009344781,0.08266968,3300.5,3298.8,5.43877]
[1720009344991,0.55,3300.4,3298.8,2.4074]
[1720009345140,0.63256633,3300.4,3298.8,2.4074]
[1720009345580,1.823,3300.3,3298.4,2.2692]
[1720009345880,0.79555663,3300.2,3298.5,0.22692]
[1720009346041,6.87811898,3300.2,3298.4,2.2692]
[1720009348200,8.70111898,3300.2,3298.4,2.2692]
[1720009348346,8.70111898,3300.2,3298.1,0.1147288]
[1720009348670,3.0,3299.8,3298.1,0.1147288]
[1720009348850,3.08226812,3299.7,3298.1,0.1147288]
[1720009349075,1.15822681,3299.6,3298.1,0.1147288]
[1720009349553,0.08226812,3299.5,3298.1,0.1147288]
[1720009353591,0.08226812,3299.5,3298.4,3.03176]
[1720009353749,0.08226812,3299.5,3298.5,0.06062068]
[1720009353950,0.08226812,3299.5,3298.8,2.546]
[1720009354257,3.0,3299.7,3298.8,2.546]
[1720009354457,3.0,3299.7,3298.9,0.06062068]
[1720009354659,0.08181884,3299.6,3298.9,0.06062068]
[1720009354891,7.32,3299.8,3298.9,0.06062068]
[1720009355196,0.08181884,3299.7,3298.9,3.09192068]
[1720009355376,0.08181884,3299.7,3299.2,2.546]
[1720009355580,0.08181884,3299.7,3299.3,0.06060933]
[1720009355951,7.32,3299.8,3299.3,0.06060933]
[1720009356145,3.0,3301.2,3299.4,3.03079]
[1720009356146,0.08193417,3299.6,3299.4,3.03079]
[1720009356512,7.32,3300.2,3299.4,3.03079]
[1720009356513,7.32,3300.2,3299.5,4.95400289]
[1720009356982,7.32,3300.2,3299.5,7.98476289]
[1720009357554,7.32,3300.2,3299.5,4.8934]
[1720009357762,7.32,3300.2,3299.5,2.3474]
[1720009358667,7.32,3300.2,3299.3,3.03087]
[1720009358668,7.32,3300.2,3299.0,9.01611]
[1720009358878,8.052,3300.2,3299.1,3.03112]
[1720009359901,0.08216079,3300.1,3299.0,5.9849]
[1720009360077,0.08216079,3300.1,3299.0,2.3789]
[1720009360305,8.052,3300.2,3299.0,2.3789]
[1720009360507,0.08211706,3300.1,3299.0,2.3789]
[1720009360724,8.052,3300.2,3299.0,2.3789]
[1720009361029,8.052,3300.2,3299.0,5.41011]
[1720009361201,0.08206538,3300.1,3299.0,2.3789]
[1720009361618,8.052,3300.2,3299.0,2.3789]
[1720009361795,8.052,3300.2,3299.1,0.23789]
[1720009362001,0.0820614,3300.1,3299.1,0.23789]
[1720009362310,8.052,3300.2,3299.1,0.23789]
[1720009362494,0.08206538,3300.1,3299.1,0.23789]
[1720009362698,8.052,3300.2,3299.1,0.23789]
[1720009362899,0.0820614,3300.1,3299.2,0.261679]
[1720009363121,8.052,3300.2,3299.2,0.261679]
[1720009363533,0.08208128,3300.1,3299.2,0.261679]
[1720009363898,8.052,3300.2,3299.2,0.261679]
[1720009364094,0.08208128,3300.1,3299.2,0.261679]
[1720009364298,8.052,3300.2,3299.2,0.261679]
[1720009364650,0.08208128,3300.1,3299.2,0.261679]
[1720009365002,8.052,3300.2,3299.2,0.261679]
[1720009365414,0.08232783,3300.1,3299.2,0.261679]
[1720009365610,0.88752783,3300.1,3299.0,2.3789]
[1720009365833,0.8052,3300.1,3298.6,3.34232633]
[1720009366035,0.08232386,3300.0,3298.6,3.03153]
[1720009366936,0.08232386,3300.0,3298.7,3.09209664]
[1720009367145,0.08232386,3300.0,3298.8,0.06061664]
[1720009367520,0.08232386,3300.0,3298.9,3.198]
[1720009367725,0.08232386,3300.0,3299.0,3.09181965]
[1720009368682,0.08232386,3300.0,3299.1,3.03111]
[1720009368815,0.08232386,3300.0,3299.2,0.06060812]
[1720009369021,3.0,3300.1,3299.4,3.0308]
[1720009369247,0.08228807,3299.9,3299.5,0.06060322]
[1720009369552,3.0,3300.4,3299.5,0.06060322]
[1720009370054,0.08232783,3300.3,3299.5,0.06060322]
[1720009372427,0.08232783,3300.3,3299.4,3.03078]
[1720009372661,0.08232783,3300.3,3299.3,2.3179]
[1720009377542,0.08232783,3300.3,3299.4,0.06060682]
[1720009377741,1.12256061,3300.3,3299.4,2.76460682]
[1720009379063,0.08232783,3300.3,3299.4,5.79536682]
[1720009379250,0.08232783,3300.3,3299.8,2.704]
[1720009379446,0.08232783,3300.3,3299.9,0.06059765]
[1720009379755,7.32,3300.8,3300.2,2.704]
[1720009380089,3.0,3302.1,3300.2,2.704]
[1720009380090,7.32,3301.1,3300.2,2.704]
[1720009380390,7.32,3301.1,3299.6,2.345]
[1720009380700,7.32,3301.1,3299.7,3.03057]
[1720009381273,7.32,3301.1,3299.6,2.345]
[1720009381583,0.732,3301.0,3299.6,5.37565]
[1720009381963,0.732,3301.0,3299.9,2.704]
[1720009384296,7.32,3301.1,3300.0,3.09085903]
[1720009386083,7.32,3301.1,3300.3,2.704]
[1720009386271,7.32,3301.1,3300.4,0.06059109]
[1720009386794,7.32,3301.1,3300.4,3.02992]
[1720009387101,7.32,3301.1,3300.5,0.06058553]
[1720009387473,7.32,3301.1,3300.3,5.0922]
[1720009387826,7.62493813,3301.1,3300.3,5.0922]
[1720009388683,7.62493813,3301.1,3300.4,0.06058555]
[1720009388904,7.32,3301.1,3300.4,0.06058555]
[1720009389790,7.32,3301.1,3300.4,3.09047555]
[1720009390001,0.08301939,3301.0,3300.4,3.09047555]
[1720009390334,0.08301939,3301.0,3300.7,2.704]
[1720009390546,7.32,3301.5,3300.8,0.06058228]
[1720009390746,0.08303926,3300.9,3300.8,0.06058228]
[1720009391116,7.32,3301.5,3300.8,0.06058228]
[1720009391298,0.08309091,3301.4,3300.8,0.06058228]
[1720009391497,0.08309091,3301.4,3300.6,0.06058245]
[1720009392850,0.08309091,3301.4,3300.7,0.06058249]
[1720009393137,0.08309091,3301.4,3300.8,0.06058247]
[1720009394113,0.08309091,3301.4,3300.6,0.06058156]
[1720009394747,0.08309091,3301.4,3300.6,6.28824156]
[1720009395041,0.08309091,3301.4,3300.9,2.704]
[1720009395240,0.08309091,3301.4,3301.0,0.06057785]
[1720009399168,0.08309091,3301.4,3301.3,2.704]
[1720009399368,7.32,3302.1,3301.3,2.704]
[1720009399369,7.32,3302.1,3301.3,8.99159684]
[1720009399548,7.32,3302.1,3301.4,0.2704]
[1720009400026,7.32,3302.1,3301.5,0.06056699]
[1720009400233,7.32,3302.4,3301.5,0.06056699]
[1720009400458,7.32,3302.4,3301.6,3.02881]
[1720009400647,7.32,3302.4,3301.6,6.22681]
[1720009400847,7.37267103,3302.4,3301.4,6.22699]
[1720009401044,0.31605907,3302.3,3301.4,5.91093093]
[1720009401480,7.68677011,3302.4,3301.4,5.91093093]
[1720009401849,0.31605899,3302.3,3301.4,5.91093093]
[1720009404693,0.31605899,3302.3,3301.4,3.198]
[1720009404992,0.08101794,3302.2,3301.4,3.198]
[1720009406213,0.08101794,3302.2,3301.4,6.22701]
[1720009410870,0.08101794,3302.2,3301.7,2.704]
[1720009411069,0.08101794,3302.2,3301.7,2.9744]
[1720009415775,0.08101794,3302.2,3301.8,5.4816]
[1720009416120,0.31605899,3302.3,3301.9,0.06055773]
[1720009416270,0.31605899,3302.3,3302.1,2.704]
[1720009416474,0.31605899,3302.3,3302.2,0.06055701]
[1720009417121,0.31605899,3302.3,3302.2,0.06055667]
[1720009417293,0.31605899,3302.3,3302.1,2.704]
[1720009418437,0.31605899,3302.3,3302.1,2.9744]
[1720009419444,0.31605899,3302.3,3302.2,6.28683668]
[1720009419733,0.31605899,3302.3,3302.2,3.198]
[1720009420244,0.31605899,3302.3,3302.1,2.9744]
[1720009420407,0.06263762,3302.3,3302.2,11.73152852]
[1720009420588,7.63409021,3303.1,3302.5,3.198]
[1720009420589,7.32,3303.1,3302.5,3.198]
[1720009420789,7.37266714,3303.5,3302.9,2.704]
[1720009421139,7.37266714,3303.5,3303.0,0.06054077]
[1720009421140,7.68865315,3303.5,3303.0,0.06054077]
[1720009421297,7.68865315,3303.5,3303.0,0.33699485]
[1720009421644,7.68865315,3303.5,3303.3,2.704]
[1720009421645,7.32,3303.5,3303.3,2.704]
[1720009421795,0.05265005,3303.9,3303.3,2.704]
[1720009422140,7.32,3304.0,3303.3,2.704]
[1720009422637,7.32,3304.0,3303.4,0.06053852]
[1720009423135,7.32,3304.0,3303.3,2.704]
[1720009424393,7.32,3304.0,3303.4,0.06053671]
[1720009424838,7.32,3304.3,3303.4,0.06053671]
[1720009425134,8.54,3304.3,3303.4,0.06053671]
[1720009425898,8.54,3304.3,3303.3,2.704]
[1720009427235,7.32,3304.3,3303.3,2.704]
[1720009428043,7.32,3304.3,3303.4,0.06053506]
[1720009428930,7.32,3304.3,3303.3,2.704]
[1720009430505,7.32,3304.3,3303.4,0.06053307]
[1720009431002,7.32,3304.3,3303.7,2.704]
[1720009431328,7.32,3304.3,3303.8,0.57587769]
[1720009431911,7.32,3304.3,3303.8,0.51535]
[1720009435054,0.07749372,3304.2,3303.8,0.51535]
[1720009435219,7.32,3304.3,3303.8,0.51535]
[1720009435416,3.0,3304.9,3303.9,0.0605282]
[1720009435740,0.07749372,3304.2,3303.9,0.3646782]
[1720009436038,3.0,3304.9,3303.9,0.3646782]
[1720009436205,3.0,3304.9,3303.9,0.30415]
[1720009436407,3.0,3304.9,3304.0,0.51535]
[1720009436606,0.07749372,3304.8,3304.0,0.51535]
[1720009436810,0.07749372,3304.8,3303.7,8.92888]
[1720009437033,3.0,3304.9,3303.7,8.92888]
[1720009437702,2.95,3304.9,3303.7,8.92888]
[1720009438021,0.07749372,3304.8,3303.7,8.92888]
[1720009440413,0.07749372,3304.8,3303.7,5.902]
[1720009440950,0.07749372,3304.8,3303.6,8.50343]
[1720009440951,0.07749372,3304.8,3304.1,2.704]
[1720009441252,7.32,3305.0,3304.2,2.4519]
[1720009441457,0.07790865,3304.7,3304.2,2.4519]
[1720009441657,7.32,3305.0,3304.2,2.4519]
[1720009441860,0.07793259,3304.6,3304.5,2.704]
[1720009442063,7.32,3305.4,3304.5,5.1663]
[1720009442359,0.07793259,3304.6,3304.5,5.1663]
[1720009442718,7.32,3305.4,3304.5,5.1663]
[1720009443138,0.07793259,3305.3,3304.5,5.1663]
[1720009443928,0.07793259,3305.3,3304.9,1.823]
[1720009444134,7.32,3306.6,3305.5,3.198]
[1720009444321,7.32,3306.6,3306.0,2.704]
[1720009444630,0.07533483,3306.5,3306.0,2.704]
[1720009445047,0.07533483,3306.5,3306.0,5.1874]
[1720009445422,7.32,3306.6,3306.0,5.1874]
[1720009445619,7.32,3306.6,3306.0,8.3854]
[1720009445858,7.32,3307.7,3306.5,8.9263]
[1720009446015,7.32,3307.7,3306.9,8.2238]
[1720009446217,7.32,3307.7,3307.0,0.06046501]
[1720009446422,0.732,3307.6,3307.0,0.06046501]
[1720009447259,0.732,3307.6,3306.9,5.0258]
[1720009448765,7.32,3307.7,3306.9,5.0258]
[1720009449231,7.32,3307.7,3307.0,0.06046512]
[1720009450376,7.32,3307.7,3306.9,5.0258]
[1720009450679,7.32,3307.7,3306.4,2.3405]
[1720009450829,3.0,3307.6,3306.4,2.3405]
[1720009451026,1.032,3307.5,3306.4,2.3405]
[1720009451846,0.07754285,3307.4,3306.5,2.76447948]
[1720009452071,0.07754285,3307.4,3306.6,3.198]
[1720009452243,7.32,3307.7,3306.9,2.704]
[1720009452444,0.07735566,3307.6,3307.3,2.704]
[1720009453154,3.0,3308.0,3307.3,2.704]
[1720009453335,0.07735566,3307.5,3307.3,2.704]
[1720009453673,4.032,3308.0,3307.4,0.06046154]
[1720009453881,4.032,3308.0,3306.8,3.198]
[1720009454031,4.032,3308.0,3306.7,5.902]
[1720009454655,4.032,3308.0,3306.7,3.198]
[1720009454948,1.1352,3307.9,3306.7,3.198]
[1720009456887,1.1352,3307.9,3306.6,2.704]
[1720009456888,1.1352,3307.9,3307.0,2.704]
[1720009457042,1.1352,3307.9,3307.1,0.06046625]
[1720009457240,1.1352,3307.9,3307.0,2.704]
[1720009457444,1.1352,3307.9,3306.8,3.198]
[1720009457646,0.41352,3307.8,3306.7,2.704]
[1720009457948,0.41352,3307.8,3306.4,2.3405]
[1720009461264,0.41352,3307.8,3306.5,0.06047712]
[1720009461672,0.41352,3307.8,3306.4,2.3405]
[1720009461862,0.154872,3307.7,3306.1,2.704]
[1720009462184,0.55,3307.6,3306.1,2.704]
[1720009462482,0.55,3307.6,3305.9,2.4939]
[1720009462684,0.55,3307.6,3305.7,2.704]
[1720009462685,3.55,3307.6,3305.7,2.704]
[1720009463002,0.3704872,3307.5,3305.7,2.704]
[1720009463176,0.55,3307.4,3305.7,2.704]
[1720009463698,0.55,3307.4,3305.0,4.27677179]
[1720009463699,3.0,3306.9,3305.0,2.2688]
[1720009463887,2.704,3306.6,3305.0,2.2688]
[1720009464193,2.704,3306.6,3304.6,3.198]
[1720009464369,3.55,3306.5,3304.7,3.198]
[1720009464749,3.55,3306.5,3304.6,2.704]
[1720009464750,6.55,3306.5,3304.6,2.704]
[1720009465066,6.55,3306.5,3304.5,2.2688]
[1720009465067,0.07684168,3306.4,3304.5,5.4668]
[1720009465251,0.55,3306.3,3304.5,5.69368]
[1720009465656,0.07684168,3306.2,3304.5,0.22688]
[1720009465961,0.07684168,3306.2,3304.3,2.704]
[1720009465962,0.55,3306.1,3304.3,2.704]
[1720009466474,0.07672608,3306.0,3304.3,2.704]
[1720009466785,0.55,3305.9,3304.3,2.704]
[1720009467155,0.07672209,3305.8,3304.3,2.704]
[1720009469865,0.07672209,3305.8,3304.7,5.902]
[1720009470066,0.07672209,3305.8,3304.8,0.06050574]
[1720009471288,0.07672209,3305.8,3304.9,3.198]
[1720009471500,0.07672209,3305.8,3304.7,5.902]
[1720009471872,0.07672209,3305.8,3304.7,2.704]
[1720009472416,0.07672209,3305.8,3304.7,5.902]
[1720009474385,0.07672209,3305.8,3304.7,8.92797]
[1720009474576,0.07672209,3305.8,3305.1,2.704]
[1720009474777,7.32,3306.1,3305.1,2.704]
[1720009475017,0.07609251,3305.7,3305.2,0.2704]
[1720009475232,7.32,3306.1,3305.2,0.2704]
[1720009475574,0.07609251,3306.0,3305.2,0.2704]
[1720009475775,0.07609251,3306.0,3305.3,0.06050056]
[1720009477673,0.07609251,3306.0,3305.2,0.2704]
[1720009477875,0.07609251,3306.0,3305.3,0.35794058]
[1720009479285,0.07609251,3306.0,3305.3,3.55594058]
[1720009479619,0.07609251,3306.0,3305.3,3.49544]
[1720009480175,0.07609251,3306.0,3305.4,0.0604955]
[1720009480377,0.07609251,3306.0,3305.3,0.29744]
[1720009480804,0.07609251,3306.0,3305.4,0.06049556]
[1720009481199,0.07609251,3306.0,3305.5,0.06049557]
[1720009481812,0.07609251,3306.0,3305.5,5.96249557]
[1720009482093,7.32,3306.4,3305.6,0.52206]
[1720009482324,0.07630777,3306.3,3305.7,0.06049006]
[1720009482527,7.32,3306.7,3305.7,0.06049006]
[1720009482926,0.07631574,3306.6,3305.7,0.06049006]
[1720009483440,0.07631574,3306.6,3305.9,2.704]
[1720009483603,0.07631574,3306.6,3306.0,0.33693487]
[1720009484456,0.07631574,3306.6,3306.0,0.27644901]
[1720009484897,0.07631574,3306.6,3305.7,3.198]
[1720009485911,0.07631574,3306.6,3305.8,0.06048595]
[1720009486393,0.07631574,3306.6,3305.9,5.902]
[1720009486694,0.07631574,3306.6,3306.0,0.06048284]
[1720009487585,10.32,3307.0,3305.9,5.902]
[1720009487784,0.07672623,3306.5,3306.0,0.06048229]
[1720009487990,10.32,3307.0,3306.0,0.06048229]
[1720009488185,0.07672623,3306.4,3306.0,0.06048229]
[1720009488501,7.32,3307.0,3306.0,0.06048229]
[1720009488502,7.32,3307.0,3306.3,2.704]
[1720009488701,7.32,3307.3,3306.4,0.0604792]
[1720009489895,7.32,3307.3,3306.1,3.198]
[1720009490081,7.32,3307.3,3305.7,3.198]
[1720009490466,7.32,3307.3,3305.6,2.4436]
[1720009490795,1.52,3307.4,3305.6,2.4436]
[1720009490796,4.434,3307.2,3305.6,2.4436]
[1720009490969,3.0,3307.1,3305.6,2.4436]
[1720009491482,1.434,3307.2,3305.6,2.4436]
[1720009491687,0.55,3307.2,3305.6,2.4436]
[1720009491866,0.55,3307.4,3305.6,2.4436]
[1720009494731,3.0,3307.3,3305.6,2.4436]
[1720009495020,0.62430805,3307.2,3305.6,2.4436]
[1720009495176,3.62430805,3307.2,3305.6,2.4436]
[1720009495381,3.62430805,3307.2,3305.0,2.3755]
[1720009495382,5.704,3306.9,3305.0,2.3755]
[1720009495584,3.55,3306.8,3305.0,2.3755]
[1720009496011,0.07430805,3306.7,3305.0,2.3755]
[1720009496281,0.55,3306.6,3305.0,2.3755]
[1720009496482,0.07419226,3306.5,3305.0,2.3755]
[1720009496715,0.55,3306.4,3305.1,0.23755]
[1720009496979,0.07418427,3306.3,3305.1,0.23755]
[1720009497214,0.07418427,3306.3,3305.4,2.704]
[1720009497383,0.07418427,3306.3,3305.5,0.06049639]
[1720009497583,3.0,3306.8,3305.5,0.06049639]
[1720009497789,0.0741044,3306.2,3305.5,0.06049639]
[1720009497982,1.332,3306.7,3305.5,0.06049639]
[1720009498239,1.332,3306.7,3305.6,2.452]
[1720009498433,0.0741084,3306.6,3305.9,2.704]
[1720009498785,3.0,3306.8,3305.7,0.06048997]
[1720009498987,0.07396071,3306.5,3305.7,0.06048997]
[1720009499229,3.0,3306.8,3305.7,0.06048997]
[1720009499547,3.0,3306.8,3305.6,2.452]
[1720009499726,1.10596071,3306.7,3305.6,2.452]
[1720009499899,1.10596071,3306.7,3305.7,0.0604935]
[1720009500105,1.10446071,3306.7,3305.7,0.0604935]
[1720009501345,1.10446071,3306.7,3305.6,2.452]
[1720009505162,1.10446071,3306.7,3305.3,2.3035]
[1720009505453,0.96044607,3306.6,3305.3,2.3035]
[1720009505810,0.0740246,3306.5,3305.3,2.3035]
[1720009507057,0.0740246,3306.5,3305.4,0.06050216]
[1720009507422,0.0740246,3306.5,3305.7,2.704]
[1720009507753,3.0,3306.8,3305.8,0.06049351]
[1720009507948,0.07397668,3306.7,3305.8,0.33694286]
[1720009508153,0.07397668,3306.7,3305.9,2.3614]
[1720009508373,0.07397668,3306.7,3306.0,0.06048893]
[1720009508649,7.32,3307.5,3306.5,5.902]
[1720009508950,7.32,3307.5,3306.6,0.06047247]
[1720009508951,0.07422821,3307.4,3306.6,0.06047247]
[1720009509362,7.32,3307.8,3306.6,0.06047247]
[1720009509561,7.32,3307.8,3307.0,2.343]
[1720009509562,0.07452357,3307.7,3307.0,2.343]
[1720009509854,0.07452357,3307.7,3307.1,0.06046926]
[1720009510355,0.07452357,3307.7,3307.1,0.36746991]
[1720009511662,3.07452357,3307.7,3307.1,0.36746991]
[1720009513156,0.07452357,3307.7,3307.3,2.704]
[1720009513364,7.32,3308.2,3307.4,0.06046241]
[1720009513524,0.80652357,3308.1,3307.4,0.06046241]
[1720009513848,0.07452357,3308.1,3307.4,0.06046241]
[1720009514458,3.07452357,3308.1,3307.4,0.06046241]
[1720009515062,3.07452357,3308.1,3307.2,0.06046143]
[1720009515357,3.07452357,3308.1,3307.3,0.06046146]
[1720009516047,3.07452357,3308.1,3307.1,3.01100065]
[1720009516245,4.11397593,3308.1,3307.1,6.20900065]
[1720009516561,3.07452357,3308.1,3307.1,6.20900065]
[1720009516756,3.07452357,3308.1,3307.1,3.01100065]
[1720009517067,3.07452357,3308.1,3307.0,2.343]
[1720009519523,3.07452357,3308.1,3306.3,3.02449]
[1720009519524,3.07452357,3308.1,3306.6,2.2524]
[1720009521138,3.07452357,3308.1,3306.7,5.96247417]
[1720009521336,3.07452357,3308.1,3306.8,0.06046759]
[1720009521541,1.03945236,3308.0,3306.8,0.06046759]
[1720009521740,0.07532965,3307.9,3306.8,0.06046759]
[1720009522862,0.07532965,3307.9,3307.1,2.704]
[1720009523065,0.07532965,3307.9,3307.2,0.06046756]
[1720009523243,3.0,3308.1,3307.2,0.06046756]
[1720009523426,0.07536156,3307.8,3307.2,0.06046756]
[1720009523631,4.032,3308.1,3307.1,2.704]
[1720009523632,3.0,3308.1,3307.3,0.06046362]
[1720009523854,0.07536156,3307.7,3307.3,0.06046362]
[1720009524038,3.0,3308.1,3307.3,0.06046362]
[1720009524237,0.07537751,3307.6,3307.3,0.06046362]
[1720009524438,3.0,3308.1,3307.3,0.33690998]
[1720009524626,0.07542538,3307.5,3307.3,0.33690998]
[1720009524831,3.0,3308.1,3307.3,0.33690998]
[1720009525033,3.0,3308.1,3307.0,3.198]
[1720009525034,0.07542538,3307.4,3307.0,3.198]
[1720009525259,3.0,3308.1,3307.0,3.198]
[1720009525526,0.07542936,3308.0,3307.0,3.198]
[1720009526159,0.07542936,3308.0,3306.9,4.9925]
[1720009526464,0.07542936,3308.0,3306.5,2.704]
[1720009526668,0.30754294,3307.9,3306.6,0.2704]
[1720009527280,0.07542936,3307.8,3306.6,0.2704]
[1720009528087,0.07542936,3307.8,3306.5,5.0187]
[1720009528246,0.07542936,3307.8,3306.5,2.3147]
[1720009528641,0.07542936,3307.8,3306.2,3.198]
[1720009529886,0.07542936,3307.8,3306.1,2.4961]
[1720009530091,0.55,3307.7,3306.1,2.4961]
[1720009530263,0.55,3307.7,3305.4,2.4452]
[1720009530581,0.07517406,3307.6,3305.7,2.704]
[1720009530782,0.55,3307.5,3305.8,0.0604874]
[1720009531009,0.07516608,3307.4,3305.8,0.0604874]
[1720009531159,0.55,3307.3,3305.9,2.4437]
[1720009531362,0.55,3307.3,3306.0,0.31090609]
[1720009531598,0.07516608,3307.2,3306.0,0.31090609]
[1720009531794,0.55,3307.3,3306.0,0.31090609]
[1720009531995,0.07516608,3307.2,3306.0,0.31090609]
[1720009532296,1.823,3307.8,3306.0,0.31090609]
[1720009532595,1.13822037,3307.7,3306.0,0.31090609]
[1720009532797,4.13822037,3307.7,3306.0,0.31090609]
[1720009533498,3.58822037,3307.7,3306.2,3.198]
[1720009533709,3.58822037,3307.7,3306.6,2.4684]
[1720009533710,0.07516608,3307.7,3306.6,2.4684]
[1720009533873,3.0,3307.6,3306.7,0.06047434]
[1720009534196,0.30754294,3307.9,3306.7,0.06047434]
[1720009534508,0.07516608,3307.8,3306.7,0.06047434]
[1720009534795,0.07516608,3307.8,3306.8,3.51136177]
[1720009534998,3.0,3308.1,3306.8,3.51136177]
[1720009535198,0.07516608,3308.0,3306.8,3.51136177]
[1720009535401,0.07516608,3308.0,3306.8,3.45088743]
[1720009535700,0.07516608,3308.0,3306.8,0.25288743]
[1720009535896,0.07516608,3308.0,3306.9,0.31769383]
[1720009536406,0.07516608,3308.0,3306.6,2.4684]
[1720009537963,0.07516608,3308.0,3306.1,2.2688]
[1720009537964,0.55,3307.9,3306.1,2.2688]
[1720009538166,0.07512218,3307.8,3306.1,2.2688]
[1720009539009,0.55,3307.7,3306.1,2.2688]
[1720009539323,3.254,3307.7,3305.8,2.3631]
[1720009539619,3.3199344,3307.6,3305.9,0.23631]
[1720009539912,0.55,3307.5,3305.9,0.23631]
[1720009540413,0.07512218,3307.4,3305.9,0.23631]
[1720009540629,0.55,3307.3,3305.9,0.23631]
[1720009540805,0.55,3307.3,3305.8,2.3631]
[1720009541027,0.07497853,3307.2,3305.8,2.3631]
[1720009541537,0.07497853,3307.2,3305.4,2.704]
[1720009541737,0.55,3307.1,3305.4,5.1902]
[1720009542040,0.07495857,3307.0,3305.5,0.51902]